Workbook

Sheet Неделя 1
A3: МЕНЮ-РАСКЛАДКА
A4: ГОРЯЧИЕ БЛЮДА ГОТОВЯТСЯ В ПАРОКОНВЕКТОМАТАХ
A5: Группа | B5: Название блюда | C5: Продукты | D5: Ед.Изм | E5: Брутто всего | F5: цена | G5: Стоимость, руб.
A6: 1 неделя
A7: Понедельник 1 неделя
B8: Плоды и ягоды свежие (яблоки) 120 г | G8: =SUM(G9) -> 11.79
C9: Яблоки | D9: г | E9: =100+20 -> 120.00 | F9: ='[1]Перечень продуктов'!$B$88 -> 98.29 | G9: =ROUND(F9/1000*E9,2) -> 11.79
B10: Салат из белокочанной капусты 60 г (капуста, морковь, сахар, м/раст.) | G10: =ROUND(SUM(G11:G16),2) -> 2.14
C11: Капуста свежая | D11: г | E11: 59.18 | F11: ='[1]Перечень продуктов'!$B$20 -> 24.64 | G11: =ROUND(F11/1000*E11,2) -> 1.46
C12: Морковь свежая | D12: г | E12: 7.98 | F12: ='[1]Перечень продуктов'!$B$52 -> 33.97 | G12: =ROUND(F12/1000*E12,2) -> 0.27
C13: Сахарный песок | D13: г | E13: 3.00 | F13: ='[1]Перечень продуктов'!$B$65 -> 32.01 | G13: =ROUND(F13/1000*E13,20) -> 0.09603
C14: Соль | D14: г | E14: 0.30 | F14: ='[1]Перечень продуктов'!$B$70 -> 11.1 | G14: =ROUND(F14/1000*E14,20) -> 0.00333
C15: Масло растительное | D15: г | E15: 3.00 | F15: ='[1]Перечень продуктов'!$B$47 -> 80.56 | G15: =ROUND(F15/1000*E15,2) -> 0.24
C16: Лимонная кислота | D16: г | E16: 0.18 | F16: ='[1]Перечень продуктов'!$B$25 -> 376.72 | G16: =ROUND(F16/1000*E16,20) -> 0.0678096
B17: Котлеты "пожарские" 80 г | G17: =ROUND(SUM(G18:G25),2) -> 18.99
C18: Говядина лопаточный отруб | D18: г | E18: 25.000 | F18: ='[1]Перечень продуктов'!$B$8 -> 378.3 | G18: =ROUND(F18/1000*E18,2) -> 9.46
C19: Мясо говядина котлетное | D19: г | E19: 25.000 | F19: ='[1]Перечень продуктов'!$B$9 -> 304.5 | G19: 7.61
C20: Лук репчатый очищенный | D20: г | E20: 12.000 | F20: ='[1]Перечень продуктов'!$B$45 -> 36.23 | G20: 0.43
C21: Батон | D21: г | E21: 14.000 | F21: ='[1]Перечень продуктов'!$B$3 -> 74.59 | G21: 1.04
C22: Вода | D22: г | E22: 19.000 | F22: ='[1]Перечень продуктов'!$B$5 -> 7.39 | G22: 0.14
C23: Соль | D23: г | E23: 1.000 | F23: ='[1]Перечень продуктов'!$B$70 -> 11.1 | G23: =ROUND(F23/1000*E23,20) -> 0.0111
C24: Сухари панировочные | D24: г | E24: 2.000 | F24: ='[1]Перечень продуктов'!$B$73 -> 70.67 | G24: 0.14
C25: Масло растительное | D25: г | E25: 2.00 | F25: ='[1]Перечень продуктов'!$B$47 -> 80.56 | G25: 0.16
B26: Каша гречневая рассыпч. с маслом 150/5 г | G26: =SUM(G27:G29) -> 9.92
C27: Крупа гречневая | D27: г | E27: 69.26 | F27: ='[1]Перечень продуктов'!$B$34 -> 70.99 | G27: =ROUND(F27/1000*E27,2) -> 4.92
C28: Соль | D28: г | E28: 3.00 | F28: ='[1]Перечень продуктов'!$B$70 -> 11.1 | G28: =ROUND(F28/1000*E28,20) -> 0.0333 | H28: отличается от 1 недели
C29: Масло сливочное | D29: г | E29: 10.25 | F29: ='[1]Перечень продуктов'!$B$48 -> 485.14 | G29: =ROUND(F29/1000*E29,2) -> 4.97 | H29: отличается от 1 недели
B30: Чай с сахаром, лимоном 200/15/7 г | G30: =SUM(G31:G33) -> 2.43
C31: Чай | D31: г | E31: 1.00 | F31: ='[1]Перечень продуктов'!$B$84 -> 658.37 | G31: 0.66
C32: Сахарный песок | D32: г | E32: 15.00 | F32: ='[1]Перечень продуктов'!$B$65 -> 32.01 | G32: 0.48
C33: Лимоны | D33: г | E33: 8.00 | F33: ='[1]Перечень продуктов'!$B$42 -> 161.27 | G33: 1.29
B34: Хлеб белый 1 сорт 30 г | G34: =SUM(G35) -> 1.64
C35: Хлеб белый 1 сорт | D35: г | E35: 30.00 | F35: ='[1]Перечень продуктов'!$B$81 -> 54.8 | G35: 1.64
B36: Хлеб сельский 20 г | G36: =SUM(G37) -> 1.08
C37: Хлеб сельский | D37: г | E37: 20.00 | F37: ='[1]Перечень продуктов'!$B$83 -> 54.16 | G37: 1.08
A38: Вторник 1 неделя
B39: Плоды и ягоды свежие (яблоки) 100 г | G39: =SUM(G40) -> 9.83
C40: Яблоки | D40: г | E40: 100.00 | F40: ='[1]Перечень продуктов'!$B$88 -> 98.29 | G40: =ROUND(F40/1000*E40,2) -> 9.83
B41: Жаркое из птицы (грудки куриные) 50/150 г | G41: =ROUND(SUM(G42:G49),2) -> 25.49
C42: Грудки куриные | D42: г | E42: 95.00 | F42: ='[1]Перечень продуктов'!$B$31 -> 199.26 | G42: 18.93
C43: Картофель свежий | D43: г | E43: 178.00 | F43: ='[1]Перечень продуктов'!$B$22 -> 28.73 | G43: 5.11
C44: Лук репчатый | D44: г | E44: 11.90 | F44: ='[1]Перечень продуктов'!$B$45 -> 36.23 | G44: 0.43
C45: Томатная паста | D45: г | E45: 2.00 | F45: ='[1]Перечень продуктов'!$B$76 -> 111.22 | G45: 0.22
C46: Масло растительное | D46: г | E46: 4.00 | F46: ='[1]Перечень продуктов'!$B$47 -> 80.56 | G46: 0.32
C47: Соль | D47: г | E47: 2.00 | F47: ='[1]Перечень продуктов'!$B$70 -> 11.1 | G47: =ROUND(F47/1000*E47,20) -> 0.0222
C48: Лавровый лист | D48: г | E48: 0.01 | F48: ='[1]Перечень продуктов'!$B$43 -> 984.8 | G48: 0.009848
C49: Морковь свежая | D49: г | E49: 13.30 | F49: ='[1]Перечень продуктов'!$B$52 -> 33.97 | G49: 0.45
B50: Овощи натуральные свежие (огурцы) 80 г | G50: =SUM(G51) -> 7.61
C51: Огурцы свежие | D51: г | E51: 81.60 | F51: ='[1]Перечень продуктов'!$B$55 -> 93.27 | G51: 7.61
B52: Какао с молоком 200 г | G52: =SUM(G53:G55) -> 6.58
C53: Какао порошок | D53: г | E53: 4.00 | F53: ='[1]Перечень продуктов'!$B$19 -> 192 | G53: 0.77
C54: Сахарный песок | D54: г | E54: 20.00 | F54: ='[1]Перечень продуктов'!$B$65 -> 32.01 | G54: 0.64
C55: Молоко | D55: г | E55: 100.00 | F55: ='[1]Перечень продуктов'!$B$51 -> 51.71 | G55: 5.17
B56: Хлеб белый 1 сорт 30 г | G56: =SUM(G57:G57) -> 1.64
C57: Хлеб белый 1 сорт | D57: г | E57: 30.00 | F57: ='[1]Перечень продуктов'!$B$81 -> 54.8 | G57: 1.64
B58: Хлеб сельский 20 г | G58: =SUM(G59) -> 1.08
C59: Хлеб сельский | D59: г | E59: 20.00 | F59: ='[1]Перечень продуктов'!$B$83 -> 54.16 | G59: 1.08
A60: Среда 1 неделя
B61: Плоды и ягоды свежие (яблоки) 120 г | G61: =SUM(G62) -> 11.79
C62: Яблоки | D62: г | E62: 120.00 | F62: ='[1]Перечень продуктов'!$B$88 -> 98.29 | G62: =ROUND(F62/1000*E62,2) -> 11.79
B63: Салат из моркови 80 г | G63: =SUM(G64:G66) -> 3.83
C64: Морковь свежая | D64: г | E64: 86.18 | F64: ='[1]Перечень продуктов'!$B$52 -> 33.97 | G64: 2.93
C65: Масло растительное | D65: г | E65: 8.00 | F65: ='[1]Перечень продуктов'!$B$47 -> 80.56 | G65: 0.64
C66: Сахарный песок | D66: г | E66: 8.00 | F66: ='[1]Перечень продуктов'!$B$65 -> 32.01 | G66: 0.26
B67: Гуляш из говядины 50/50 г | G67: =ROUND(SUM(G68:G74),2) -> 31.91
C68: Мясо говядина лопаточный отруб | D68: г | E68: 81.00 | F68: ='[1]Перечень продуктов'!$B$8 -> 378.3 | G68: 30.64
C69: Масло растительное | D69: г | E69: 5.00 | F69: ='[1]Перечень продуктов'!$B$47 -> 80.56 | G69: 0.40
C70: Лук репчатый | D70: г | E70: 11.90 | F70: ='[1]Перечень продуктов'!$B$45 -> 36.23 | G70: 0.43
C71: Томатная паста | D71: г | E71: 3.20 | F71: ='[1]Перечень продуктов'!$B$76 -> 111.22 | G71: 0.36
C72: Мука пшеничная | D72: г | E72: 2.00 | F72: ='[1]Перечень продуктов'!$B$53 -> 28.65 | G72: =ROUND(F72/1000*E72,20) -> 0.0573
C73: Соль | D73: г | E73: 1.00 | F73: ='[1]Перечень продуктов'!$B$70 -> 11.1 | G73: 0.0111
C74: Лавровый лист | D74: г | E74: 0.01 | F74: ='[1]Перечень продуктов'!$B$43 -> 984.8 | G74: 0.009848
B75: Макаронные изделия отварные 150 г | G75: =ROUND(SUM(G76:G78),2) -> 4.64
C76: Макаронные изделия твердых сортов | D76: г | E76: 50.93 | F76: ='[1]Перечень продуктов'!$B$46 -> 40.73 | G76: 2.07
C77: Соль | D77: г | E77: 1.50 | F77: ='[1]Перечень продуктов'!$B$70 -> 11.1 | G77: =ROUND(F77/1000*E77,20) -> 0.01665
C78: Масло сливочное | D78: г | E78: 5.25 | F78: ='[1]Перечень продуктов'!$B$48 -> 485.14 | G78: 2.55
B79: Чай с сахаром, курагой 200/15/7 г | G79: =SUM(G80:G82) -> 2.19
C80: Чай | D80: г | E80: 1.00 | F80: ='[1]Перечень продуктов'!$B$84 -> 658.37 | G80: 0.66
C81: Сахарный песок | D81: г | E81: 15.00 | F81: ='[1]Перечень продуктов'!$B$65 -> 32.01 | G81: 0.48
C82: Курага | D82: г | E82: 7.00 | F82: ='[1]Перечень продуктов'!$B$29 -> 150 | G82: 1.05
B83: Хлеб белый 1 сорт 30 г | G83: =SUM(G84) -> 1.64
C84: Хлеб белый 1 сорт | D84: г | E84: 30.00 | F84: ='[1]Перечень продуктов'!$B$81 -> 54.8 | G84: 1.64
B85: Хлеб сельский 20 г | G85: =SUM(G86) -> 1.08
C86: Хлеб сельский | D86: г | E86: 20.00 | F86: ='[1]Перечень продуктов'!$B$83 -> 54.16 | G86: 1.08
A87: Четверг 1 неделя
B88: Плоды и ягоды свежие (яблоки) 120 г | G88: =SUM(G89) -> 11.79
C89: Яблоки | D89: г | E89: 120.00 | F89: ='[1]Перечень продуктов'!$B$88 -> 98.29 | G89: =ROUND(F89/1000*E89,2) -> 11.79
B90: Салат из свежих огурцов 60 г | G90: =SUM(G91:G92) -> 5.71
C91: Огурцы свежие | D91: г | E91: 58.14 | F91: ='[1]Перечень продуктов'!$B$55 -> 93.27 | G91: 5.42
C92: Масло растительное | D92: г | E92: 3.60 | F92: ='[1]Перечень продуктов'!$B$47 -> 80.56 | G92: 0.29
B93: Биточки рыбные из минтая 80 г | G93: =ROUND(SUM(G94:G102),2) -> 15.79
C94: Рыба минтай | D94: г | E94: 79 | F94: ='[1]Перечень продуктов'!$B$50 -> 163.19 | G94: 12.89
C95: или фарш из минтая | D95: г | E95: 60
C96: Яйцо 1 кат. | D96: шт | E96: 0.2 | G96: =ROUND(F96/1000*E96,20) -> 0
C97: Сухари панировочные | D97: г | E97: 7 | F97: ='[1]Перечень продуктов'!$B$73 -> 70.67 | G97: 0.49
C98: Вода | D98: г | E98: 8 | F98: ='[1]Перечень продуктов'!$B$5 -> 7.39 | G98: =ROUND(F98/1000*E98,20) -> 0.05912
C99: Молоко сухое | D99: г | E99: 5 | F99: ='[1]Перечень продуктов'!$B$51 -> 51.71 | G99: =ROUND(F99/1000*E99*$I$99,2) -> 2.07 | H99: Цена молока | I99: =200/25 -> 8 | J99: Из 25 гр.сухого=200мл. молока
C100: Лук репчатый очищенный | D100: г | E100: 3 | F100: ='[1]Перечень продуктов'!$B$45 -> 36.23 | G100: =ROUND(F100/1000*E100,2) -> 0.11
C101: Соль | D101: г | E101: 1 | F101: ='[1]Перечень продуктов'!$B$70 -> 11.1 | G101: =ROUND(F101/1000*E101,20) -> 0.0111
C102: Масло растительное | D102: г | E102: 2.00 | F102: ='[1]Перечень продуктов'!$B$47 -> 80.56 | G102: 0.16
B103: Пюре картофельное с маслом 150/5 г | G103: =ROUND(SUM(G104:G108),2) -> 11.69
C104: Картофель свежий | D104: г | E104: 190.00 | F104: ='[1]Перечень продуктов'!$B$22 -> 28.73 | G104: 5.46
C105: Соль | D105: г | E105: 1.50 | F105: ='[1]Перечень продуктов'!$B$70 -> 11.1 | G105: =ROUND(F105/1000*E105,20) -> 0.01665
C106: Молоко | D106: г | E106: 23.70 | F106: ='[1]Перечень продуктов'!$B$51 -> 51.71 | G106: 1.23
C107: Масло сливочное | D107: г | E107: 5.25 | F107: ='[1]Перечень продуктов'!$B$48 -> 485.14 | G107: 2.55
C108: Масло сливочное | D108: г | E108: 5.00 | F108: ='[1]Перечень продуктов'!$B$48 -> 485.14 | G108: 2.43
B109: Кофейный напиток с молоком 200 г | G109: =SUM(G110:G112) -> 7.69
C110: Кофейный напиток | D110: г | E110: 5.00 | F110: ='[1]Перечень продуктов'!$B$27 -> 375.42 | G110: 1.88
C111: Сахарный песок | D111: г | E111: 20.00 | F111: ='[1]Перечень продуктов'!$B$65 -> 32.01 | G111: 0.64
C112: Молоко | D112: г | E112: 100.00 | F112: ='[1]Перечень продуктов'!$B$51 -> 51.71 | G112: 5.17
B113: Хлеб белый 1 сорт 30 г | G113: =SUM(G114) -> 1.64
C114: Хлеб белый 1 сорт | D114: г | E114: 30.00 | F114: ='[1]Перечень продуктов'!$B$81 -> 54.8 | G114: 1.64
B115: Хлеб сельский 20 г | G115: =SUM(G116) -> 1.08
C116: Хлеб сельский | D116: г | E116: 20.00 | F116: ='[1]Перечень продуктов'!$B$83 -> 54.16 | G116: 1.08
A117: Пятница 1 неделя
B118: Плов с говядиной 50/150 (рис пропареный) | G118: =ROUND(SUM(G119:G125),2) -> 35.87
C119: Мясо говядина лопаточный отруб | D119: г | E119: 81.00 | F119: ='[1]Перечень продуктов'!$B$8 -> 378.3 | G119: 30.64
C120: Рис пропаренный | D120: г | E120: 51.00 | F120: ='[1]Перечень продуктов'!$B$35 -> 63.38 | G120: 3.23 | H120: Нет в Эл.Магазине
C121: Масло растительное | D121: г | E121: 7.50 | F121: ='[1]Перечень продуктов'!$B$47 -> 80.56 | G121: 0.60
C122: Лук репчатый | D122: г | E122: 8.93 | F122: ='[1]Перечень продуктов'!$B$45 -> 36.23 | G122: 0.32
C123: Морковь свежая | D123: г | E123: 15.96 | F123: ='[1]Перечень продуктов'!$B$52 -> 33.97 | G123: 0.54
C124: Томатная паста | D124: г | E124: 4.80 | F124: ='[1]Перечень продуктов'!$B$76 -> 111.22 | G124: 0.53
C125: Соль | D125: г | E125: 1.20 | F125: ='[1]Перечень продуктов'!$B$70 -> 11.1 | G125: =ROUND(F125/1000*E125,20) -> 0.01332
B126: Овощи натуральные свежие (помидоры) 60 г | G126: =SUM(G127) -> 8.16
C127: Помидоры свежие | D127: г | E127: 61.20 | F127: ='[1]Перечень продуктов'!$B$62 -> 133.4 | G127: 8.16
B128: Чай с сахаром, лимоном 200/15/7 г | G128: =SUM(G129:G131) -> 2.43
C129: Чай | D129: г | E129: 1.00 | F129: ='[1]Перечень продуктов'!$B$84 -> 658.37 | G129: 0.66
C130: Сахарный песок | D130: г | E130: 15.00 | F130: ='[1]Перечень продуктов'!$B$65 -> 32.01 | G130: 0.48
C131: Лимоны | D131: г | E131: 8.00 | F131: ='[1]Перечень продуктов'!$B$42 -> 161.27 | G131: 1.29
B132: Хлеб белый 1 сорт 30 г | G132: =SUM(G133) -> 1.64
C133: Хлеб белый 1 сорт | D133: г | E133: 30.00 | F133: ='[1]Перечень продуктов'!$B$81 -> 54.8 | G133: 1.64
B134: Хлеб сельский 20 г | G134: =SUM(G135) -> 1.08
C135: Хлеб сельский | D135: г | E135: 20.00 | F135: ='[1]Перечень продуктов'!$B$83 -> 54.16 | G135: 1.08
A136: Суббота 1 неделя
B137: Плоды и ягоды свежие (яблоки) 100 г | G137: =SUM(G138) -> 9.83
C138: Яблоки | D138: г | E138: 100.00 | F138: ='[1]Перечень продуктов'!$B$88 -> 98.29 | G138: 9.83
B139: Салат из свежих помидоров (без лука) 60 г | G139: =SUM(G140:G141) -> 8.05
C140: Помидоры свежие | D140: г | E140: 58.14 | F140: ='[1]Перечень продуктов'!$B$62 -> 133.4 | G140: 7.76
C141: Масло растительное | D141: г | E141: 3.60 | F141: ='[1]Перечень продуктов'!$B$47 -> 80.56 | G141: 0.29
B142: Пельмени "для умников и умниц" отварные с маслом 150/5 г (говядина и мясо птицы) ) | G142: =ROUND(SUM(G143:G152),2) -> 24.48
C143: Мука пшеничная | D143: г | E143: 41 | F143: ='[1]Перечень продуктов'!$B$53 -> 28.65 | G143: 1.17
C144: Яйцо 1 кат. | D144: шт | E144: 0.07 | F144: ='[1]Перечень продуктов'!$B$89 -> 5.55 | G144: =ROUND(F144/1000*E144,20) -> 0.0003885
C145: Вода | D145: г | E145: 13.3 | F145: ='[1]Перечень продуктов'!$B$5 -> 7.39 | G145: 0.10
C146: Соль | D146: г | E146: 2 | F146: ='[1]Перечень продуктов'!$B$70 -> 11.1 | G146: =ROUND(F146/1000*E146,20) -> 0.0222
C147: Мясо говядина котлетное | D147: г | E147: 25 | F147: ='[1]Перечень продуктов'!$B$8 -> 378.3 | G147: 9.46
C148: Грудки куриные | D148: г | E148: 54.2 | F148: ='[1]Перечень продуктов'!$B$31 -> 199.26 | G148: 10.80
C149: Лук репчатый очищенный | D149: г | E149: 12 | F149: ='[1]Перечень продуктов'!$B$45 -> 36.23 | G149: 0.43
C150: Масло растительное | D150: г | E150: 0.4 | F150: ='[1]Перечень продуктов'!$B$47 -> 80.56 | G150: =ROUND(F150/1000*E150,20) -> 0.032224
C151: Соль | D151: г | E151: 2.80 | F151: ='[1]Перечень продуктов'!$B$70 -> 11.1 | G151: 0.03108
C152: Масло сливочное | D152: г | E152: 5.00 | F152: ='[1]Перечень продуктов'!$B$48 -> 485.14 | G152: 2.43
B153: Какао с молоком 200 г | G153: =SUM(G154:G156) -> 6.58
C154: Какао порошок | D154: г | E154: 4.00 | F154: ='[1]Перечень продуктов'!$B$19 -> 192 | G154: 0.77
C155: Сахарный песок | D155: г | E155: 20.00 | F155: ='[1]Перечень продуктов'!$B$65 -> 32.01 | G155: 0.64
C156: Молоко | D156: г | E156: 100.00 | F156: ='[1]Перечень продуктов'!$B$51 -> 51.71 | G156: 5.17
B157: Хлеб белый 1 сорт 30 г | G157: =SUM(G158) -> 1.64
C158: Хлеб белый 1 сорт | D158: г | E158: 30.00 | F158: ='[1]Перечень продуктов'!$B$81 -> 54.8 | G158: 1.64
B159: Хлеб сельский 20 г | G159: =SUM(G160) -> 1.08
C160: Хлеб сельский | D160: г | E160: 20.00 | F160: ='[1]Перечень продуктов'!$B$83 -> 54.16 | G160: 1.08

Sheet Неделя 2
A1: МЕНЮ-РАСКЛАДКА
A2: ГОРЯЧИЕ БЛЮДА ГОТОВЯТСЯ В ПАРОКОНВЕКТОМАТАХ
A3: Группа | B3: Название блюда | C3: Продукты | D3: Ед.Изм | E3: Брутто всего | F3: цена | G3: Стоимость, руб.
A4: 2 неделя
A5: Понедельник 2 неделя
B6: Плоды и ягоды свежие (яблоки) 120 г | G6: =SUM(G7) -> 11.79
C7: Яблоки | D7: г | E7: =100+20 -> 120.00 | F7: ='[1]Перечень продуктов'!$B$88 -> 98.29 | G7: =ROUND(F7/1000*E7,2) -> 11.79
B8: Овощи натуральные свежие (помидоры) 80 г | G8: =SUM(G9) -> 10.89
C9: Помидоры свежие | D9: г | E9: 81.600 | F9: ='[1]Перечень продуктов'!$B$62 -> 133.4 | G9: =ROUND(F9/1000*E9,2) -> 10.89
B10: Котлеты "аппетитные" мясо - куриные 80 г | G10: =ROUND(SUM(G11:G19),2) -> 24.59
C11: Мясо говядина лопаточный отруб | D11: г | E11: 49.500 | F11: ='[1]Перечень продуктов'!$B$8 -> 378.3 | G11: =ROUND(F11/1000*E11,2) -> 18.73
C12: Лук репчатый | D12: г | E12: 18.620 | F12: ='[1]Перечень продуктов'!$B$45 -> 36.23 | G12: 0.67
C13: Грудки куриные | D13: г | E13: 16.000 | F13: ='[1]Перечень продуктов'!$B$31 -> 199.26 | G13: 3.19
C14: Батон | D14: г | E14: 7.000 | F14: ='[1]Перечень продуктов'!$B$3 -> 74.59 | G14: 0.52
C15: Вода | D15: г | E15: 8.000 | F15: ='[1]Перечень продуктов'!$B$5 -> 7.39 | G15: =ROUND(F15/1000*E15,20) -> 0.05912
C16: Масло сливочное | D16: г | E16: 2.000 | F16: ='[1]Перечень продуктов'!$B$48 -> 485.14 | G16: 0.97
C17: Сухари панировочные | D17: г | E17: 4.000 | F17: ='[1]Перечень продуктов'!$B$73 -> 70.67 | G17: 0.28
C18: Соль | D18: г | E18: 1.000 | F18: ='[1]Перечень продуктов'!$B$70 -> 11.1 | G18: =ROUND(F18/1000*E18,20) -> 0.0111
C19: Масло растительное | D19: г | E19: 2.000 | F19: ='[1]Перечень продуктов'!$B$47 -> 80.56 | G19: 0.16
B20: Макароны твердых сортов отварные с маслом 150/5 г | G20: =ROUND(SUM(G21:G24),2) -> 7.07
C21: Макаронные изделия твердых сортов | D21: г | E21: 50.930 | F21: ='[1]Перечень продуктов'!$B$46 -> 40.73 | G21: =ROUND(F21/1000*E21,2) -> 2.07
C22: Соль | D22: г | E22: 1.500 | F22: ='[1]Перечень продуктов'!$B$70 -> 11.1 | G22: =ROUND(F22/1000*E22,20) -> 0.01665
C23: Масло сливочное | D23: г | E23: 5.250 | F23: ='[1]Перечень продуктов'!$B$48 -> 485.14 | G23: 2.55
C24: Масло сливочное | D24: г | E24: 5.000 | F24: ='[1]Перечень продуктов'!$B$48 -> 485.14 | G24: 2.43
B25: Кофейный напиток с молоком 200 г | G25: =SUM(G26:G28) -> 7.69
C26: Кофейный напиток | D26: г | E26: 5.000 | F26: ='[1]Перечень продуктов'!$B$27 -> 375.42 | G26: =ROUND(F26/1000*E26,2) -> 1.88
C27: Сахарный песок | D27: г | E27: 20.000 | F27: ='[1]Перечень продуктов'!$B$65 -> 32.01 | G27: 0.64
C28: Молоко | D28: г | E28: 100.000 | F28: ='[1]Перечень продуктов'!$B$51 -> 51.71 | G28: 5.17
B29: Хлеб сельский 20 г | G29: =SUM(G30) -> 1.08
C30: Хлеб сельский | D30: г | E30: 20.000 | F30: ='[1]Перечень продуктов'!$B$83 -> 54.16 | G30: =ROUND(F30/1000*E30,2) -> 1.08
B31: Хлеб белый 1 сорт 30 г | G31: =SUM(G32) -> 1.64
C32: Хлеб белый 1 сорт | D32: г | E32: 30.000 | F32: ='[1]Перечень продуктов'!$B$81 -> 54.8 | G32: =ROUND(F32/1000*E32,2) -> 1.64
A33: Вторник 2 неделя
B34: Плоды и ягоды свежие (яблоки) 120 г | G34: =SUM(G35) -> 11.79
C35: Яблоки | D35: г | E35: 120.00 | F35: ='[1]Перечень продуктов'!$B$88 -> 98.29 | G35: =ROUND(F35/1000*E35,2) -> 11.79
B36: Салат из свежих огурцов 80 г | G36: =SUM(G37:G38) -> 7.62
C37: Огурцы свежие | D37: г | E37: 77.520 | F37: ='[1]Перечень продуктов'!$B$55 -> 93.27 | G37: =ROUND(F37/1000*E37,2) -> 7.23
C38: Масло растительное | D38: г | E38: 4.800 | F38: ='[1]Перечень продуктов'!$B$47 -> 80.56 | G38: 0.39
B39: Ёжики мясные с рисом в соусе томатном 60 /40 г | G39: =ROUND(SUM(G40:G57),2) -> 17.65
C40: Мясо говядина котлетное | D40: г | E40: 39.600 | F40: ='[1]Перечень продуктов'!$B$9 -> 304.5 | G40: =ROUND(F40/1000*E40,2) -> 12.06
C41: Мясо говядина лопаточный отруб | D41: г | E41: 9.900 | F41: ='[1]Перечень продуктов'!$B$8 -> 378.3 | G41: 3.75
C42: Крупа рисовая | D42: г | E42: 7.000 | F42: ='[1]Перечень продуктов'!$B$35 -> 63.38 | G42: 0.44
C43: Вода | D43: г | E43: 12.000 | F43: ='[1]Перечень продуктов'!$B$5 -> 7.39 | G43: =ROUND(F43/1000*E43,20) -> 0.08868
C44: Соль | D44: г | E44: 1.000 | F44: ='[1]Перечень продуктов'!$B$70 -> 11.1 | G44: 0.0111
C45: Лук репчатый | D45: г | E45: 6.650 | F45: ='[1]Перечень продуктов'!$B$45 -> 36.23 | G45: 0.24
C46: Хлеб белый 1 сорт | D46: г | E46: 1.000 | F46: ='[1]Перечень продуктов'!$B$81 -> 54.8 | G46: =ROUND(F46/1000*E46,20) -> 0.0548
C47: Масло растительное | D47: г | E47: 2.000 | F47: ='[1]Перечень продуктов'!$B$47 -> 80.56 | G47: 0.16
C48: Томатная паста | D48: г | E48: 4.000 | F48: ='[1]Перечень продуктов'!$B$76 -> 111.22 | G48: 0.44
C49: Морковь свежая | D49: г | E49: 3.240 | F49: ='[1]Перечень продуктов'!$B$52 -> 33.97 | G49: 0.11
C50: Лук репчатый | D50: г | E50: 1.065 | F50: ='[1]Перечень продуктов'!$B$45 -> 36.23 | G50: =ROUND(F50/1000*E50,20) -> 0.03858495
C51: Масло растительное | D51: г | E51: 2.040 | F51: ='[1]Перечень продуктов'!$B$47 -> 80.56 | G51: 0.16
C52: Мука пшеничная | D52: г | E52: 2.000 | F52: ='[1]Перечень продуктов'!$B$53 -> 28.65 | G52: =ROUND(F52/1000*E52,20) -> 0.0573
C53: Соль | D53: г | E53: 0.400 | F53: ='[1]Перечень продуктов'!$B$70 -> 11.1 | G53: 0.00444
C54: Сахарный песок | D54: г | E54: 0.480 | F54: ='[1]Перечень продуктов'!$B$65 -> 32.01 | G54: 0.0153648
C55: Чеснок молотый | D55: г | E55: 0.040 | F55: ='[1]Перечень продуктов'!$B$87 -> 245.98 | G55: 0.0098392 | H55: нет в Эл.магазине
C56: Лавровый лист | D56: г | E56: 0.004 | F56: ='[1]Перечень продуктов'!$B$43 -> 984.8 | G56: 0.0039392
C57: Укроп | D57: г | E57: 0.004 | F57: ='[1]Перечень продуктов'!$B$79 -> 400.79 | G57: 0.00160316 | H57: не предусмотрено в ПКМ715 для школьников
B58: Пюре картофельное 150 г | G58: =ROUND(SUM(G59:G62),2) -> 9.25
C59: Соль | D59: г | E59: 1.500 | F59: ='[1]Перечень продуктов'!$B$70 -> 11.1 | G59: =ROUND(F59/1000*E59,20) -> 0.01665
C60: Молоко | D60: г | E60: 23.700 | F60: ='[1]Перечень продуктов'!$B$51 -> 51.71 | G60: =ROUND(F60/1000*E60,2) -> 1.23
C61: Масло сливочное | D61: г | E61: 5.250 | F61: ='[1]Перечень продуктов'!$B$48 -> 485.14 | G61: 2.55
C62: Картофель свежий | D62: г | E62: 189.810 | F62: ='[1]Перечень продуктов'!$B$22 -> 28.73 | G62: 5.45
B63: Какао с молоком 200 г | G63: =SUM(G64:G66) -> 6.58
C64: Какао порошок | D64: г | E64: 4.000 | F64: ='[1]Перечень продуктов'!$B$19 -> 192 | G64: =ROUND(F64/1000*E64,2) -> 0.77
C65: Сахарный песок | D65: г | E65: 20.000 | F65: ='[1]Перечень продуктов'!$B$65 -> 32.01 | G65: 0.64
C66: Молоко | D66: г | E66: 100.000 | F66: ='[1]Перечень продуктов'!$B$51 -> 51.71 | G66: 5.17
B67: Хлеб сельский 20 г | G67: =SUM(G68) -> 1.08
C68: Хлеб сельский | D68: г | E68: 20.000 | F68: ='[1]Перечень продуктов'!$B$83 -> 54.16 | G68: =ROUND(F68/1000*E68,2) -> 1.08
B69: Хлеб белый 1 сорт 30 г | G69: =SUM(G70) -> 1.64
C70: Хлеб белый 1 сорт | D70: г | E70: 30.000 | F70: ='[1]Перечень продуктов'!$B$81 -> 54.8 | G70: =ROUND(F70/1000*E70,2) -> 1.64
A71: Среда 2 неделя
B72: Плоды и ягоды свежие (яблоки) 120 г | G72: =SUM(G73) -> 11.79
C73: Яблоки | D73: г | E73: 120.000 | F73: ='[1]Перечень продуктов'!$B$88 -> 98.29 | G73: =ROUND(F73/1000*E73,2) -> 11.79
B74: Салат из белокочанной капусты 60 г (капуста, морковь, сахар, м/раст.) | G74: =ROUND(SUM(G75:G80),2) -> 2.14
C75: Капуста свежая | D75: г | E75: 59.180 | F75: ='[1]Перечень продуктов'!$B$20 -> 24.64 | G75: =ROUND(F75/1000*E75,2) -> 1.46
C76: Морковь свежая | D76: г | E76: 7.980 | F76: ='[1]Перечень продуктов'!$B$52 -> 33.97 | G76: 0.27
C77: Сахарный песок | D77: г | E77: 3.000 | F77: ='[1]Перечень продуктов'!$B$65 -> 32.01 | G77: =ROUND(F77/1000*E77,20) -> 0.09603
C78: Соль | D78: г | E78: 0.300 | F78: ='[1]Перечень продуктов'!$B$70 -> 11.1 | G78: 0.00333
C79: Масло растительное | D79: г | E79: 3.000 | F79: ='[1]Перечень продуктов'!$B$47 -> 80.56 | G79: 0.24
C80: Лимонная кислота | D80: г | E80: 0.180 | F80: ='[1]Перечень продуктов'!$B$25 -> 376.72 | G80: =ROUND(F80/1000*E80,20) -> 0.0678096
B81: Гуляш из куриных грудок 50/50 г | G81: =ROUND(SUM(G82:G90),2) -> 20.27
C82: Грудки куриные | D82: г | E82: 94.670 | F82: ='[1]Перечень продуктов'!$B$31 -> 199.26 | G82: =ROUND(F82/1000*E82,2) -> 18.86
C83: Масло растительное | D83: г | E83: 4.000 | F83: ='[1]Перечень продуктов'!$B$47 -> 80.56 | G83: 0.32
C84: Томатная паста | D84: г | E84: 5.000 | F84: ='[1]Перечень продуктов'!$B$76 -> 111.22 | G84: 0.56
C85: Масло растительное | D85: г | E85: 2.550 | F85: ='[1]Перечень продуктов'!$B$47 -> 80.56 | G85: 0.21
C86: Морковь свежая | D86: г | E86: 5.320 | F86: ='[1]Перечень продуктов'!$B$52 -> 33.97 | G86: 0.18
C87: Мука пшеничная | D87: г | E87: 2.250 | F87: ='[1]Перечень продуктов'!$B$53 -> 28.65 | G87: =ROUND(F87/1000*E87,20) -> 0.0644625
C88: Сахарный песок | D88: г | E88: 0.500 | F88: ='[1]Перечень продуктов'!$B$65 -> 32.01 | G88: 0.016005
C89: Соль | D89: г | E89: 1.200 | F89: ='[1]Перечень продуктов'!$B$70 -> 11.1 | G89: 0.01332
C90: Лук репчатый | D90: г | E90: 1.190 | F90: ='[1]Перечень продуктов'!$B$45 -> 36.23 | G90: 0.0431137
B91: Каша гречневая рассыпчатая 150 г | G91: =ROUND(SUM(G92:G94),2) -> 7.49
C92: Крупа гречневая | D92: г | E92: 69.260 | F92: ='[1]Перечень продуктов'!$B$34 -> 70.99 | G92: =ROUND(F92/1000*E92,2) -> 4.92
C93: Масло сливочное | D93: г | E93: 5.250 | F93: ='[1]Перечень продуктов'!$B$48 -> 485.14 | G93: 2.55
C94: Соль | D94: г | E94: 1.500 | F94: ='[1]Перечень продуктов'!$B$70 -> 11.1 | G94: =ROUND(F94/1000*E94,20) -> 0.01665
B95: Чай с сахаром 200/15 г | G95: =SUM(G96:G97) -> 1.14
C96: Чай | D96: г | E96: 1.000 | F96: ='[1]Перечень продуктов'!$B$84 -> 658.37 | G96: =ROUND(F96/1000*E96,2) -> 0.66
C97: Сахарный песок | D97: г | E97: 15.000 | F97: ='[1]Перечень продуктов'!$B$65 -> 32.01 | G97: 0.48
B98: Хлеб сельский 20 г | G98: =SUM(G99) -> 1.08
C99: Хлеб сельский | D99: г | E99: 20.000 | F99: ='[1]Перечень продуктов'!$B$83 -> 54.16 | G99: =ROUND(F99/1000*E99,2) -> 1.08
B100: Хлеб белый 1 сорт 30 г | G100: =SUM(G101) -> 1.64
C101: Хлеб белый 1 сорт | D101: г | E101: 30.000 | F101: ='[1]Перечень продуктов'!$B$81 -> 54.8 | G101: =ROUND(F101/1000*E101,2) -> 1.64
A102: Четверг 2 неделя
B103: Хлеб белый 1 сорт 30 г | G103: =SUM(G104) -> 1.64
C104: Хлеб белый 1 сорт | D104: г | E104: 30.000 | F104: ='[1]Перечень продуктов'!$B$81 -> 54.8 | G104: =ROUND(F104/1000*E104,2) -> 1.64
B105: Хлеб сельский 20 г | G105: =SUM(G106) -> 1.08
C106: Хлеб сельский | D106: г | E106: 20.000 | F106: ='[1]Перечень продуктов'!$B$83 -> 54.16 | G106: =ROUND(F106/1000*E106,2) -> 1.08
B107: Салат из моркови 80 г | G107: =SUM(G108:G110) -> 3.83
C108: Морковь свежая | D108: г | E108: 86.180 | F108: ='[1]Перечень продуктов'!$B$52 -> 33.97 | G108: =ROUND(F108/1000*E108,2) -> 2.93
C109: Масло растительное | D109: г | E109: 8.000 | F109: ='[1]Перечень продуктов'!$B$47 -> 80.56 | G109: 0.64
C110: Сахарный песок | D110: г | E110: 8.000 | F110: ='[1]Перечень продуктов'!$B$65 -> 32.01 | G110: 0.26
B111: Грудка куриная (маринованное филе) в сливочном соусе 60/30 г) | G111: =ROUND(SUM(G112:G120),2) -> 31.35
C112: Грудки куриные | D112: г | E112: 114.250 | F112: ='[1]Перечень продуктов'!$B$31 -> 199.26 | G112: =ROUND(F112/1000*E112,2) -> 22.77
C113: Соус переменка | D113: г | E113: 13.000 | F113: ='[1]Перечень продуктов'!$B$109 -> 129.7 | G113: 1.69
C114: Масло растительное | D114: г | E114: 4.300 | F114: ='[1]Перечень продуктов'!$B$47 -> 80.56 | G114: 0.35
C115: Соль | D115: г | E115: 0.860 | F115: ='[1]Перечень продуктов'!$B$70 -> 11.1 | G115: =ROUND(F115/1000*E115,20) -> 0.009546
C116: Лук репчатый | D116: г | E116: 11.900 | F116: ='[1]Перечень продуктов'!$B$45 -> 36.23 | G116: 0.43
C117: Сметана | D117: г | E117: 10.000 | F117: ='[1]Перечень продуктов'!$B$72 -> 164.84 | G117: 1.65
C118: Масло сливочное | D118: г | E118: 8.000 | F118: ='[1]Перечень продуктов'!$B$48 -> 485.14 | G118: 3.88
C119: Масло растительное | D119: г | E119: 5.000 | F119: ='[1]Перечень продуктов'!$B$47 -> 80.56 | G119: 0.4
C120: Чеснок молотый | D120: г | E120: 0.680 | F120: ='[1]Перечень продуктов'!$B$87 -> 245.98 | G120: 0.17 | H120: нет в Эл.магазине
B121: Рис отварной 150 г | G121: =ROUND(SUM(G122:G124),2) -> 6.71
C122: Крупа рисовая | D122: г | E122: 54.000 | F122: ='[1]Перечень продуктов'!$B$35 -> 63.38 | G122: =ROUND(F122/1000*E122,2) -> 3.42
C123: Соль | D123: г | E123: 1.500 | F123: ='[1]Перечень продуктов'!$B$70 -> 11.1 | G123: =ROUND(F123/1000*E123,20) -> 0.01665
C124: Масло сливочное | D124: г | E124: 6.750 | F124: ='[1]Перечень продуктов'!$B$48 -> 485.14 | G124: 3.27
B125: Чай с сахаром, курагой 200/15/7 г | G125: =SUM(G126:G128) -> 2.19
C126: Чай | D126: г | E126: 1.000 | F126: ='[1]Перечень продуктов'!$B$84 -> 658.37 | G126: =ROUND(F126/1000*E126,2) -> 0.66
C127: Сахарный песок | D127: г | E127: 15.000 | F127: ='[1]Перечень продуктов'!$B$65 -> 32.01 | G127: 0.48
C128: Курага | D128: г | E128: 7.000 | F128: ='[1]Перечень продуктов'!$B$29 -> 150 | G128: 1.05
A129: Пятница 2 неделя
B130: Чай с сахаром, лимоном 200/15/7 г | G130: =SUM(G131:G133) -> 2.43
C131: Чай | D131: г | E131: 1.000 | F131: ='[1]Перечень продуктов'!$B$84 -> 658.37 | G131: =ROUND(F131/1000*E131,2) -> 0.66
C132: Сахарный песок | D132: г | E132: 15.000 | F132: ='[1]Перечень продуктов'!$B$65 -> 32.01 | G132: 0.48
C133: Лимоны | D133: г | E133: 8.000 | F133: ='[1]Перечень продуктов'!$B$42 -> 161.27 | G133: 1.29
B134: Салат из свеклы отварной (с маслом) 80 г | G134: =SUM(G135:G136) -> 4.07
C135: Свекла свежая | D135: г | E135: 103.360 | F135: ='[1]Перечень продуктов'!$B$66 -> 35.63 | G135: =ROUND(F135/1000*E135,2) -> 3.68
C136: Масло растительное | D136: г | E136: 4.800 | F136: ='[1]Перечень продуктов'!$B$47 -> 80.56 | G136: 0.39
B137: Мясо по-милански 180 г | G137: =ROUND(SUM(G138:G149),2) -> 37.03
C138: Мясо говядина лопаточный отруб | D138: г | E138: 63.000 | F138: ='[1]Перечень продуктов'!$B$8 -> 378.3 | G138: =ROUND(F138/1000*E138,2) -> 23.83
C139: Картофель свежий | D139: г | E139: 84.780 | F139: ='[1]Перечень продуктов'!$B$22 -> 28.73 | G139: 2.44
C140: Яйцо 1 кат. | D140: шт | E140: 0.820 | F140: ='[1]Перечень продуктов'!$B$89 -> 5.55 | G140: =ROUND(F140/1000*E140,20) -> 0.004551
C141: Лук репчатый | D141: г | E141: 19.480 | F141: ='[1]Перечень продуктов'!$B$45 -> 36.23 | G141: 0.71
C142: Сметана | D142: г | E142: 13.910 | F142: ='[1]Перечень продуктов'!$B$72 -> 164.84 | G142: 2.29
C143: Молоко | D143: г | E143: 13.100 | F143: ='[1]Перечень продуктов'!$B$51 -> 51.71 | G143: 0.68
C144: Морковь свежая | D144: г | E144: 16.330 | F144: ='[1]Перечень продуктов'!$B$52 -> 33.97 | G144: 0.55
C145: Соус переменка | D145: г | E145: 8.180 | F145: ='[1]Перечень продуктов'!$B$109 -> 129.7 | G145: 1.06
C146: Сыр | D146: г | E146: 8.180 | F146: ='[1]Перечень продуктов'!$B$74 -> 497.88 | G146: 4.07
C147: Масло растительное | D147: г | E147: 2.460 | F147: ='[1]Перечень продуктов'!$B$47 -> 80.56 | G147: 0.2
C148: Масло сливочное | D148: г | E148: 2.460 | F148: ='[1]Перечень продуктов'!$B$48 -> 485.14 | G148: 1.19
C149: Соль | D149: г | E149: 0.810 | F149: ='[1]Перечень продуктов'!$B$70 -> 11.1 | G149: =ROUND(F149/1000*E149,20) -> 0.008991
B150: Хлеб белый 1 сорт 30 г | G150: =SUM(G151) -> 1.64
C151: Хлеб белый 1 сорт | D151: г | E151: 30.000 | F151: ='[1]Перечень продуктов'!$B$81 -> 54.8 | G151: =ROUND(F151/1000*E151,2) -> 1.64
B152: Хлеб сельский 20 г | G152: =SUM(G153) -> 1.08
C153: Хлеб сельский | D153: г | E153: 20.000 | F153: ='[1]Перечень продуктов'!$B$83 -> 54.16 | G153: =ROUND(F153/1000*E153,2) -> 1.08
A154: Суббота 2 неделя
B155: Хлеб сельский 20 г | G155: =SUM(G156) -> 1.08
C156: Хлеб сельский | D156: г | E156: 20.000 | F156: ='[1]Перечень продуктов'!$B$83 -> 54.16 | G156: =ROUND(F156/1000*E156,2) -> 1.08
B157: Хлеб белый 1 сорт 30 г | G157: =SUM(G158) -> 1.64
C158: Хлеб белый 1 сорт | D158: г | E158: 30.000 | F158: ='[1]Перечень продуктов'!$B$81 -> 54.8 | G158: =ROUND(F158/1000*E158,2) -> 1.64
B159: Овощи натуральные свежие (помидоры) 80 г | G159: =SUM(G160) -> 10.89
C160: Помидоры свежие | D160: г | E160: 81.600 | F160: ='[1]Перечень продуктов'!$B$62 -> 133.4 | G160: =ROUND(F160/1000*E160,2) -> 10.89
B161: Сосиски отварные 100 г | G161: =SUM(G162) -> 26
C162: Сосиски говяжьи | D162: г | E162: 102.000 | F162: ='[1]Перечень продуктов'!$B$71 -> 254.9 | G162: =ROUND(F162/1000*E162,2) -> 26 | H162: нет в Эл.магазине (цена за обычные сосиски)
B163: Макароны твердых сортов отварные с маслом 150/5 г | G163: =ROUND(SUM(G164:G167),2) -> 7.07
C164: Макаронные изделия твердых сортов | D164: г | E164: 50.930 | F164: ='[1]Перечень продуктов'!$B$46 -> 40.73 | G164: =ROUND(F164/1000*E164,2) -> 2.07
C165: Соль | D165: г | E165: 1.500 | F165: ='[1]Перечень продуктов'!$B$70 -> 11.1 | G165: =ROUND(F165/1000*E165,20) -> 0.01665
C166: Масло сливочное | D166: г | E166: 5.250 | F166: ='[1]Перечень продуктов'!$B$48 -> 485.14 | G166: 2.55
C167: Масло сливочное | D167: г | E167: 5.000 | F167: ='[1]Перечень продуктов'!$B$48 -> 485.14 | G167: 2.43
B168: Кофейный напиток с молоком 200 г | G168: =SUM(G169:G171) -> 7.69
C169: Кофейный напиток | D169: г | E169: 5.000 | F169: ='[1]Перечень продуктов'!$B$27 -> 375.42 | G169: =ROUND(F169/1000*E169,2) -> 1.88
C170: Сахарный песок | D170: г | E170: 20.000 | F170: ='[1]Перечень продуктов'!$B$65 -> 32.01 | G170: 0.64
C171: Молоко | D171: г | E171: 100.000 | F171: ='[1]Перечень продуктов'!$B$51 -> 51.71 | G171: 5.17
